[Event "November 21 Early 2023"]
[Site "https://www.chess.com"]
[Date "2023.11.21"]
[Round "10"]
[White "Mystery2007"]
[Black "AlmasRakhmatullaev"]
[Result "1-0"]
[Board "77"]
[TimeControl "180+1"]
[WhiteElo "2511"]
[BlackElo "2823"]
[WhiteClock "0:00:08"]
[BlackClock "0:00:00"]

1. Nf3 {[%clk 0:03:00]}  Nf6 {[%clk 0:02:59]} 2. b3 {[%clk 0:03:01]}  g6 {[%clk 0:03:00]} 3. Bb2 {[%clk 0:03:01]}  Bg7 {[%clk 0:03:01]} 4. g3 {[%clk 0:03:01]}  O-O {[%clk 0:03:01]} 5. Bg2 {[%clk 0:03:01]}  d6 {[%clk 0:03:02]} 6. O-O {[%clk 0:03:02]}  Nbd7 {[%clk 0:03:03]} 7. d3 {[%clk 0:03:02]}  e5 {[%clk 0:03:02]} 8. c4 {[%clk 0:03:02]}  Rb8 {[%clk 0:03:02]} 9. Nbd2 {[%clk 0:03:02]}  b6 {[%clk 0:03:02]} 10. Qc2 {[%clk 0:03:02]}  Bb7 {[%clk 0:03:02]} 11. Rfe1 {[%clk 0:02:56]}  Qe7 {[%clk 0:03:01]} 12. e3 {[%clk 0:02:55]}  Rfe8 {[%clk 0:02:59]} 13. Ne4 {[%clk 0:02:45]}  Nxe4 {[%clk 0:02:35]} 14. dxe4 {[%clk 0:02:46]}  Nc5 {[%clk 0:02:36]} 15. Nd2 {[%clk 0:02:44]}  a5 {[%clk 0:02:35]} 16. a3 {[%clk 0:02:45]}  Qd7 {[%clk 0:02:30]} 17. b4 {[%clk 0:02:42]}  Na4 {[%clk 0:02:30]} 18. Nb3 {[%clk 0:02:26]}  Ba8 {[%clk 0:02:09]} 19. Bc1 {[%clk 0:02:10]}  f5 {[%clk 0:01:52]} 20. Bd2 {[%clk 0:02:04]}  Rf8 {[%clk 0:01:35]} 21. Rab1 {[%clk 0:01:48]}  axb4 {[%clk 0:01:26]} 22. axb4 {[%clk 0:01:48]}  fxe4 {[%clk 0:01:20]} 23. Bxe4 {[%clk 0:01:46]}  Bxe4 {[%clk 0:01:20]} 24. Qxe4 {[%clk 0:01:47]}  Qf7 {[%clk 0:01:20]} 25. Rf1 {[%clk 0:01:31]}  b5 {[%clk 0:01:15]} 26. cxb5 {[%clk 0:01:12]}  Rxb5 {[%clk 0:01:10]} 27. Na5 {[%clk 0:01:04]}  Nb6 {[%clk 0:01:04]} 28. Rbc1 {[%clk 0:00:54]}  Nd5 {[%clk 0:00:47]} 29. Qc4 {[%clk 0:00:52]}  Rbb8 {[%clk 0:00:41]} 30. Nc6 {[%clk 0:00:44]}  Rbe8 {[%clk 0:00:40]} 31. e4 {[%clk 0:00:44]}  Nf6 {[%clk 0:00:31]} 32. Bg5 {[%clk 0:00:32]}  Qxc4 {[%clk 0:00:24]} 33. Rxc4 {[%clk 0:00:33]}  d5 {[%clk 0:00:23]} 34. exd5 {[%clk 0:00:32]}  Nxd5 {[%clk 0:00:24]} 35. Rd1 {[%clk 0:00:32]}  Nb6 {[%clk 0:00:22]} 36. Re4 {[%clk 0:00:22]}  h6 {[%clk 0:00:18]} 37. Be7 {[%clk 0:00:21]}  Rf7 {[%clk 0:00:15]} 38. Bc5 {[%clk 0:00:22]}  Na4 {[%clk 0:00:15]} 39. Rd3 {[%clk 0:00:17]}  Nxc5 {[%clk 0:00:11]} 40. bxc5 {[%clk 0:00:18]}  Bf8 {[%clk 0:00:11]} 41. Rd5 {[%clk 0:00:17]}  Re6 {[%clk 0:00:05]} 42. Nxe5 {[%clk 0:00:16]}  Rf5 {[%clk 0:00:05]} 43. f4 {[%clk 0:00:15]}  c6 {[%clk 0:00:04]} 44. Rd7 {[%clk 0:00:13]}  Bxc5+ {[%clk 0:00:04]} 45. Kg2 {[%clk 0:00:14]}  g5 {[%clk 0:00:04]} 46. Rc4 {[%clk 0:00:11]}  Bd6 {[%clk 0:00:03]} 47. Rxc6 {[%clk 0:00:10]}  Rff6 {[%clk 0:00:02]} 48. Ng4 {[%clk 0:00:09]}  Rg6 {[%clk 0:00:01]} 49. f5 {[%clk 0:00:09]}  h5 {[%clk 0:00:00]} 50. fxe6 {[%clk 0:00:08]} 1-0

[Event "November 21 Early 2023"]
[Site "https://www.chess.com"]
[Date "2023.11.21"]
[Round "10"]
[White "Ambartsumova, Karina"]
[Black "Ongut, Tamas Gunes"]
[Result "0-1"]
[Board "81"]
[TimeControl "180+1"]
[WhiteFideId "4166299"]
[BlackFideId "770280"]
[WhiteElo "2240"]
[BlackElo "2148"]
[WhiteTeam "RUS"]
[BlackTeam "HUN"]
[WhiteClock "0:00:08"]
[BlackClock "0:00:11"]

1. d4 {[%clk 0:03:00]}  Nf6 {[%clk 0:02:58]} 2. c4 {[%clk 0:03:00]}  e6 {[%clk 0:02:58]} 3. Nc3 {[%clk 0:03:00]}  Bb4 {[%clk 0:02:58]} 4. Qc2 {[%clk 0:03:00]}  O-O {[%clk 0:02:53]} 5. a3 {[%clk 0:02:59]}  Bxc3+ {[%clk 0:02:47]} 6. Qxc3 {[%clk 0:03:00]}  d5 {[%clk 0:02:47]} 7. Nf3 {[%clk 0:02:59]}  dxc4 {[%clk 0:02:47]} 8. Qxc4 {[%clk 0:02:59]}  b6 {[%clk 0:02:47]} 9. Bf4 {[%clk 0:02:51]}  Ba6 {[%clk 0:02:38]} 10. Qc2 {[%clk 0:02:44]}  Nbd7 {[%clk 0:02:19]} 11. Rd1 {[%clk 0:02:26]}  Rc8 {[%clk 0:02:14]} 12. g3 {[%clk 0:02:18]}  c5 {[%clk 0:02:09]} 13. dxc5 {[%clk 0:02:17]}  Rxc5 {[%clk 0:02:06]} 14. Qa4 {[%clk 0:02:10]}  Qc8 {[%clk 0:01:54]} 15. Bg2 {[%clk 0:01:37]}  Rc4 {[%clk 0:01:46]} 16. Qb3 {[%clk 0:01:33]}  Nc5 {[%clk 0:01:43]} 17. Qa2 {[%clk 0:01:20]}  Rc2 {[%clk 0:01:40]} 18. Nd4 {[%clk 0:01:18]}  Na4 {[%clk 0:01:00]} 19. Nxc2 {[%clk 0:01:08]}  Qxc2 {[%clk 0:01:01]} 20. Rd2 {[%clk 0:00:39]}  Qc1+ {[%clk 0:00:52]} 21. Rd1 {[%clk 0:00:39]}  Qc2 {[%clk 0:00:52]} 22. O-O {[%clk 0:00:29]}  Nc3 {[%clk 0:00:51]} 23. Qa1 {[%clk 0:00:27]}  Nxe2+ {[%clk 0:00:43]} 24. Kh1 {[%clk 0:00:26]}  Nxf4 {[%clk 0:00:43]} 25. Rc1 {[%clk 0:00:21]}  Qf5 {[%clk 0:00:26]} 26. gxf4 {[%clk 0:00:18]}  Bxf1 {[%clk 0:00:25]} 27. Rxf1 {[%clk 0:00:19]}  Qxf4 {[%clk 0:00:25]} 28. h3 {[%clk 0:00:19]}  Rd8 {[%clk 0:00:23]} 29. Qe1 {[%clk 0:00:19]}  h5 {[%clk 0:00:22]} 30. Qc3 {[%clk 0:00:18]}  Rd2 {[%clk 0:00:21]} 31. Kg1 {[%clk 0:00:18]}  Qd4 {[%clk 0:00:17]} 32. Qc8+ {[%clk 0:00:16]}  Kh7 {[%clk 0:00:17]} 33. b4 {[%clk 0:00:16]}  Ne4 {[%clk 0:00:16]} 34. Bxe4+ {[%clk 0:00:13]}  Qxe4 {[%clk 0:00:17]} 35. Qc3 {[%clk 0:00:12]}  Rd3 {[%clk 0:00:13]} 36. Qc1 {[%clk 0:00:10]}  Rxh3 {[%clk 0:00:12]} 37. Re1 {[%clk 0:00:08]}  Qh1# {[%clk 0:00:11]} 0-1

[Event "November 21 Early 2023"]
[Site "https://www.chess.com"]
[Date "2023.11.21"]
[Round "10"]
[White "Kuznetsova, Olga"]
[Black "Manukian, Artak"]
[Result "0-1"]
[Board "83"]
[TimeControl "180+1"]
[WhiteFideId "4191323"]
[BlackFideId "13301373"]
[WhiteElo "2134"]
[BlackElo "2030"]
[WhiteTeam "RUS"]
[BlackTeam "ARM"]
[WhiteClock "0:00:07"]
[BlackClock "0:00:51"]

1. d4 {[%clk 0:02:56]}  d5 {[%clk 0:02:51]} 2. Bf4 {[%clk 0:02:56]}  Bg4 {[%clk 0:02:50]} 3. Nf3 {[%clk 0:02:54]}  Bxf3 {[%clk 0:02:49]} 4. gxf3 {[%clk 0:02:54]}  e6 {[%clk 0:02:49]} 5. Nd2 {[%clk 0:02:50]}  Bd6 {[%clk 0:02:49]} 6. Bg3 {[%clk 0:02:50]}  f5 {[%clk 0:02:48]} 7. Bxd6 {[%clk 0:02:37]}  Qxd6 {[%clk 0:02:49]} 8. e3 {[%clk 0:02:37]}  Nf6 {[%clk 0:02:47]} 9. c4 {[%clk 0:02:37]}  O-O {[%clk 0:02:44]} 10. Qb3 {[%clk 0:02:35]}  Nbd7 {[%clk 0:02:43]} 11. c5 {[%clk 0:02:29]}  Qe7 {[%clk 0:02:36]} 12. Qxb7 {[%clk 0:02:27]}  Rab8 {[%clk 0:02:35]} 13. Qxc7 {[%clk 0:02:27]}  Rxb2 {[%clk 0:02:34]} 14. Bd3 {[%clk 0:02:22]}  e5 {[%clk 0:02:14]} 15. dxe5 {[%clk 0:01:38]}  Qxe5 {[%clk 0:01:50]} 16. Qxe5 {[%clk 0:01:37]}  Nxe5 {[%clk 0:01:51]} 17. Bxf5 {[%clk 0:01:30]}  g6 {[%clk 0:01:50]} 18. O-O-O {[%clk 0:01:11]}  Rxa2 {[%clk 0:01:44]} 19. Bb1 {[%clk 0:01:11]}  Ra5 {[%clk 0:01:39]} 20. Nb3 {[%clk 0:01:11]}  Rb5 {[%clk 0:01:35]} 21. Bc2 {[%clk 0:01:03]}  Rfb8 {[%clk 0:01:30]} 22. f4 {[%clk 0:01:03]}  Nc6 {[%clk 0:01:25]} 23. f3 {[%clk 0:00:31]}  Rxb3 {[%clk 0:01:21]} 24. Bxb3 {[%clk 0:00:29]}  Rxb3 {[%clk 0:01:21]} 25. Rhe1 {[%clk 0:00:29]}  Nb4 {[%clk 0:01:16]} 26. Kd2 {[%clk 0:00:26]}  d4 {[%clk 0:01:10]} 27. exd4 {[%clk 0:00:24]}  Nfd5 {[%clk 0:01:10]} 28. Ke2 {[%clk 0:00:18]}  Nc3+ {[%clk 0:01:05]} 29. Kf2 {[%clk 0:00:16]}  Nxd1+ {[%clk 0:01:06]} 30. Rxd1 {[%clk 0:00:16]}  Nd5 {[%clk 0:01:04]} 31. Kg3 {[%clk 0:00:15]}  Kf7 {[%clk 0:01:02]} 32. Ra1 {[%clk 0:00:15]}  Rb7 {[%clk 0:01:01]} 33. Ra6 {[%clk 0:00:16]}  Rd7 {[%clk 0:01:00]} 34. c6 {[%clk 0:00:15]}  Rc7 {[%clk 0:00:59]} 35. Ra5 {[%clk 0:00:16]}  Ke6 {[%clk 0:00:59]} 36. Ra6 {[%clk 0:00:15]}  Kd6 {[%clk 0:00:58]} 37. Kg4 {[%clk 0:00:15]}  Nb4 {[%clk 0:00:53]} 38. Ra4 {[%clk 0:00:15]}  Nxc6 {[%clk 0:00:53]} 39. Kg5 {[%clk 0:00:15]}  a5 {[%clk 0:00:51]} 40. h4 {[%clk 0:00:15]}  Rf7 {[%clk 0:00:51]} 41. h5 {[%clk 0:00:14]}  Rf5+ {[%clk 0:00:51]} 42. Kg4 {[%clk 0:00:14]}  Rxh5 {[%clk 0:00:52]} 43. Ra1 {[%clk 0:00:12]}  Rd5 {[%clk 0:00:51]} 44. Rh1 {[%clk 0:00:12]}  h5+ {[%clk 0:00:51]} 45. Kh4 {[%clk 0:00:11]}  Nxd4 {[%clk 0:00:51]} 46. Rd1 {[%clk 0:00:07]}  Nxf3+ {[%clk 0:00:51]} 0-1

[Event "November 21 Early 2023"]
[Site "https://www.chess.com"]
[Date "2023.11.21"]
[Round "10"]
[White "Sreyas Payyappat"]
[Black "Santos Flores, Alberto"]
[Result "1-0"]
[Board "84"]
[TimeControl "180+1"]
[WhiteFideId "46674969"]
[BlackFideId "3601234"]
[WhiteElo "2043"]
[BlackElo "2235"]
[WhiteTeam "IND"]
[BlackTeam "ECU"]
[WhiteClock "0:00:55"]
[BlackClock "0:01:17"]

1. e4 {[%clk 0:03:00]}  e6 {[%clk 0:02:59]} 2. d4 {[%clk 0:02:59]}  d5 {[%clk 0:02:59]} 3. Nc3 {[%clk 0:02:59]}  Nf6 {[%clk 0:02:59]} 4. Bg5 {[%clk 0:02:57]}  Bb4 {[%clk 0:02:58]} 5. e5 {[%clk 0:02:56]}  h6 {[%clk 0:02:58]} 6. Be3 {[%clk 0:02:37]}  Ne4 {[%clk 0:02:58]} 7. Qg4 {[%clk 0:02:25]}  Kf8 {[%clk 0:02:56]} 8. a3 {[%clk 0:02:15]}  Bxc3+ {[%clk 0:02:53]} 9. bxc3 {[%clk 0:02:15]}  c5 {[%clk 0:02:53]} 10. Bd3 {[%clk 0:01:55]}  Nxc3 {[%clk 0:02:39]} 11. dxc5 {[%clk 0:01:49]}  Nc6 {[%clk 0:02:28]} 12. Nf3 {[%clk 0:01:47]}  Qa5 {[%clk 0:02:08]} 13. O-O {[%clk 0:01:40]}  Na4 {[%clk 0:01:47]} 14. Rab1 {[%clk 0:01:33]}  a6 {[%clk 0:01:45]} 15. Bd2 {[%clk 0:01:27]}  Nc3 {[%clk 0:01:36]} 16. Rb3 {[%clk 0:01:22]}  d4 {[%clk 0:01:34]} 17. Nxd4 {[%clk 0:01:03]}  h5 {[%clk 0:01:34]} 18. Nxc6 {[%clk 0:00:58]}  bxc6 {[%clk 0:01:19]} 19. Qd4 {[%clk 0:00:57]}  Nd5 {[%clk 0:01:17]} 20. Bxa5 {[%clk 0:00:55]} 1-0

[Event "November 21 Early 2023"]
[Site "https://www.chess.com"]
[Date "2023.11.21"]
[Round "10"]
[White "Grossboss19"]
[Black "ChessLebaneseSalah"]
[Result "0-1"]
[Board "93"]
[TimeControl "180+1"]
[WhiteElo "2519"]
[BlackElo "2408"]
[WhiteClock "0:00:00"]
[BlackClock "0:00:12"]

1. d4 {[%clk 0:02:55]}  d5 {[%clk 0:02:57]} 2. c4 {[%clk 0:02:54]}  c6 {[%clk 0:02:57]} 3. e3 {[%clk 0:02:50]}  Nf6 {[%clk 0:02:56]} 4. Nc3 {[%clk 0:02:48]}  e6 {[%clk 0:02:55]} 5. b3 {[%clk 0:02:45]}  Nbd7 {[%clk 0:02:47]} 6. Bb2 {[%clk 0:02:45]}  Bd6 {[%clk 0:02:45]} 7. Bd3 {[%clk 0:02:43]}  O-O {[%clk 0:02:43]} 8. Nge2 {[%clk 0:02:38]}  dxc4 {[%clk 0:02:34]} 9. bxc4 {[%clk 0:02:37]}  e5 {[%clk 0:02:33]} 10. h3 {[%clk 0:02:33]}  Qe7 {[%clk 0:02:26]} 11. O-O {[%clk 0:02:32]}  Re8 {[%clk 0:02:18]} 12. Qd2 {[%clk 0:02:27]}  b6 {[%clk 0:02:13]} 13. Rfe1 {[%clk 0:02:22]}  Bb7 {[%clk 0:02:05]} 14. Ng3 {[%clk 0:02:14]}  g6 {[%clk 0:01:50]} 15. Nce4 {[%clk 0:02:02]}  Nxe4 {[%clk 0:01:48]} 16. Nxe4 {[%clk 0:02:00]}  c5 {[%clk 0:01:41]} 17. Nxd6 {[%clk 0:01:58]}  Qxd6 {[%clk 0:01:41]} 18. d5 {[%clk 0:01:56]}  b5 {[%clk 0:01:30]} 19. e4 {[%clk 0:01:55]}  b4 {[%clk 0:01:26]} 20. Rf1 {[%clk 0:01:41]}  f6 {[%clk 0:01:18]} 21. g3 {[%clk 0:01:38]}  a5 {[%clk 0:01:13]} 22. f4 {[%clk 0:01:33]}  Kg7 {[%clk 0:01:13]} 23. Kh2 {[%clk 0:01:31]}  a4 {[%clk 0:01:09]} 24. a3 {[%clk 0:01:28]}  b3 {[%clk 0:01:09]} 25. Rf2 {[%clk 0:01:21]}  Re7 {[%clk 0:01:04]} 26. Raf1 {[%clk 0:01:19]}  Rf8 {[%clk 0:00:57]} 27. h4 {[%clk 0:01:12]}  h6 {[%clk 0:00:41]} 28. Qd1 {[%clk 0:01:03]}  Ref7 {[%clk 0:00:33]} 29. Qg4 {[%clk 0:00:59]}  h5 {[%clk 0:00:28]} 30. Qd1 {[%clk 0:00:45]}  Bc8 {[%clk 0:00:28]} 31. f5 {[%clk 0:00:38]}  g5 {[%clk 0:00:17]} 32. Qxh5 {[%clk 0:00:36]}  Rh8 {[%clk 0:00:17]} 33. Qg4 {[%clk 0:00:34]}  Kf8 {[%clk 0:00:14]} 34. Rh1 {[%clk 0:00:29]}  gxh4 {[%clk 0:00:11]} 35. Kg1 {[%clk 0:00:14]}  Rg7 {[%clk 0:00:11]} 36. Qe2 {[%clk 0:00:14]}  Rxg3+ {[%clk 0:00:10]} 37. Rg2 {[%clk 0:00:14]}  Rhg8 {[%clk 0:00:10]} 38. Rxg3 {[%clk 0:00:13]}  Rxg3+ {[%clk 0:00:10]} 39. Kf1 {[%clk 0:00:13]}  Qe7 {[%clk 0:00:11]} 40. Rxh4 {[%clk 0:00:10]}  Qg7 {[%clk 0:00:11]} 41. Rh1 {[%clk 0:00:07]}  Qg5 {[%clk 0:00:11]} 42. Ke1 {[%clk 0:00:02]}  Re3 {[%clk 0:00:10]} 43. Kd2 {[%clk 0:00:02]}  Rxe2+ {[%clk 0:00:10]} 44. Kxe2 {[%clk 0:00:02]}  Qg2+ {[%clk 0:00:11]} 45. Ke3 {[%clk 0:00:00]}  Qxh1 {[%clk 0:00:12]} 0-1

[Event "November 21 Early 2023"]
[Site "https://www.chess.com"]
[Date "2023.11.21"]
[Round "10"]
[White "Skurikhin, Dmitrij"]
[Black "LeoLV10"]
[Result "0-1"]
[Board "94"]
[TimeControl "180+1"]
[WhiteFideId "4161297"]
[WhiteElo "2197"]
[BlackElo "2517"]
[WhiteTeam "RUS"]
[WhiteClock "0:00:00"]
[BlackClock "0:00:55"]

1. d4 {[%clk 0:03:00]}  Nf6 {[%clk 0:02:59]} 2. Nf3 {[%clk 0:02:59]}  e6 {[%clk 0:02:58]} 3. c4 {[%clk 0:02:58]}  a6 {[%clk 0:02:57]} 4. a3 {[%clk 0:02:56]}  d5 {[%clk 0:02:57]} 5. Nc3 {[%clk 0:02:52]}  Be7 {[%clk 0:02:57]} 6. Bg5 {[%clk 0:02:50]}  O-O {[%clk 0:02:57]} 7. e3 {[%clk 0:02:49]}  h6 {[%clk 0:02:57]} 8. Bh4 {[%clk 0:02:48]}  Nbd7 {[%clk 0:02:57]} 9. Qc2 {[%clk 0:02:47]}  Rb8 {[%clk 0:02:51]} 10. cxd5 {[%clk 0:02:46]}  exd5 {[%clk 0:02:50]} 11. Bd3 {[%clk 0:02:45]}  Re8 {[%clk 0:02:49]} 12. O-O {[%clk 0:02:45]}  Nf8 {[%clk 0:02:50]} 13. Ne5 {[%clk 0:02:43]}  c6 {[%clk 0:02:45]} 14. b4 {[%clk 0:02:39]}  N6d7 {[%clk 0:02:32]} 15. Bg3 {[%clk 0:02:23]}  Nxe5 {[%clk 0:02:32]} 16. Bxe5 {[%clk 0:02:21]}  Bd6 {[%clk 0:02:31]} 17. Bg3 {[%clk 0:02:18]}  Bxg3 {[%clk 0:02:28]} 18. hxg3 {[%clk 0:02:19]}  Qf6 {[%clk 0:02:26]} 19. Qe2 {[%clk 0:02:15]}  g6 {[%clk 0:02:24]} 20. Qf3 {[%clk 0:02:14]}  Qg7 {[%clk 0:02:12]} 21. Qf4 {[%clk 0:02:13]}  Bd7 {[%clk 0:02:10]} 22. Na4 {[%clk 0:02:08]}  Ne6 {[%clk 0:02:09]} 23. Qf3 {[%clk 0:01:54]}  Rbd8 {[%clk 0:02:01]} 24. Nc5 {[%clk 0:01:50]}  Bc8 {[%clk 0:01:59]} 25. a4 {[%clk 0:01:48]}  h5 {[%clk 0:01:47]} 26. Rfc1 {[%clk 0:01:36]}  Qh8 {[%clk 0:01:33]} 27. Nxe6 {[%clk 0:01:34]}  Rxe6 {[%clk 0:01:26]} 28. b5 {[%clk 0:01:34]}  axb5 {[%clk 0:01:26]} 29. axb5 {[%clk 0:01:34]}  Rf6 {[%clk 0:01:23]} 30. Qe2 {[%clk 0:01:25]}  h4 {[%clk 0:01:23]} 31. gxh4 {[%clk 0:01:20]}  Qxh4 {[%clk 0:01:21]} 32. g3 {[%clk 0:01:20]}  Qh6 {[%clk 0:01:17]} 33. bxc6 {[%clk 0:01:15]}  bxc6 {[%clk 0:01:17]} 34. Ra8 {[%clk 0:01:14]}  Kg7 {[%clk 0:01:13]} 35. Qf1 {[%clk 0:00:50]}  Bh3 {[%clk 0:01:02]} 36. Rxd8 {[%clk 0:00:37]}  Bxf1 {[%clk 0:01:02]} 37. Bxf1 {[%clk 0:00:37]}  Qg5 {[%clk 0:01:01]} 38. Bd3 {[%clk 0:00:23]}  Re6 {[%clk 0:00:57]} 39. Rc8 {[%clk 0:00:13]}  Rxe3 {[%clk 0:00:56]} 40. fxe3 {[%clk 0:00:13]}  Qxe3+ {[%clk 0:00:56]} 41. Kg2 {[%clk 0:00:00]}  Qxc1 {[%clk 0:00:55]} 0-1

[Event "November 21 Early 2023"]
[Site "https://www.chess.com"]
[Date "2023.11.21"]
[Round "10"]
[White "Skibbe, Willi"]
[Black "Baches Garcia, Guillermo"]
[Result "0-1"]
[Board "95"]
[TimeControl "180+1"]
[WhiteFideId "4682190"]
[BlackFideId "2209764"]
[WhiteElo "2289"]
[BlackElo "2516"]
[WhiteTeam "GER"]
[BlackTeam "ESP"]
[WhiteClock "0:00:07"]
[BlackClock "0:00:11"]

1. e4 {[%clk 0:01:59]}  d5 {[%clk 0:02:59]} 2. exd5 {[%clk 0:01:58]}  Qxd5 {[%clk 0:03:00]} 3. Nf3 {[%clk 0:01:58]}  Bg4 {[%clk 0:02:59]} 4. Be2 {[%clk 0:01:57]}  Nc6 {[%clk 0:02:59]} 5. Nc3 {[%clk 0:01:56]}  Qd7 {[%clk 0:02:56]} 6. O-O {[%clk 0:01:53]}  O-O-O {[%clk 0:02:56]} 7. h3 {[%clk 0:01:48]}  Bxf3 {[%clk 0:02:55]} 8. Bxf3 {[%clk 0:01:47]}  Nd4 {[%clk 0:02:55]} 9. d3 {[%clk 0:01:46]}  e5 {[%clk 0:02:55]} 10. Re1 {[%clk 0:01:45]}  Bd6 {[%clk 0:02:52]} 11. Ne4 {[%clk 0:01:40]}  f5 {[%clk 0:02:50]} 12. Nxd6+ {[%clk 0:01:37]}  Qxd6 {[%clk 0:02:49]} 13. c3 {[%clk 0:01:37]}  Nxf3+ {[%clk 0:02:44]} 14. Qxf3 {[%clk 0:01:38]}  Qxd3 {[%clk 0:02:41]} 15. Be3 {[%clk 0:01:23]}  Nf6 {[%clk 0:02:29]} 16. Rad1 {[%clk 0:01:22]}  Qe4 {[%clk 0:02:28]} 17. Qxe4 {[%clk 0:01:20]}  Nxe4 {[%clk 0:02:25]} 18. Rxd8+ {[%clk 0:01:18]}  Rxd8 {[%clk 0:02:23]} 19. f3 {[%clk 0:01:04]}  Nf6 {[%clk 0:02:06]} 20. a4 {[%clk 0:00:57]}  b6 {[%clk 0:02:00]} 21. a5 {[%clk 0:00:53]}  Rd5 {[%clk 0:01:54]} 22. axb6 {[%clk 0:00:52]}  axb6 {[%clk 0:01:55]} 23. Ra1 {[%clk 0:00:46]}  Kd7 {[%clk 0:01:53]} 24. Kf2 {[%clk 0:00:43]}  f4 {[%clk 0:01:50]} 25. Bc1 {[%clk 0:00:42]}  g5 {[%clk 0:01:49]} 26. Ke2 {[%clk 0:00:40]}  Ke6 {[%clk 0:01:46]} 27. c4 {[%clk 0:00:39]}  Rd7 {[%clk 0:01:38]} 28. Ra8 {[%clk 0:00:32]}  e4 {[%clk 0:01:36]} 29. fxe4 {[%clk 0:00:27]}  Nxe4 {[%clk 0:01:31]} 30. Re8+ {[%clk 0:00:26]}  Re7 {[%clk 0:01:24]} 31. Rg8 {[%clk 0:00:22]}  Kf5 {[%clk 0:01:19]} 32. Rf8+ {[%clk 0:00:20]}  Ke5 {[%clk 0:01:15]} 33. b3 {[%clk 0:00:19]}  Kd6 {[%clk 0:00:57]} 34. Kf3 {[%clk 0:00:15]}  c5 {[%clk 0:00:48]} 35. Rf5 {[%clk 0:00:12]}  h6 {[%clk 0:00:44]} 36. h4 {[%clk 0:00:09]}  Re6 {[%clk 0:00:38]} 37. hxg5 {[%clk 0:00:08]}  hxg5 {[%clk 0:00:39]} 38. Kg4 {[%clk 0:00:08]}  Rg6 {[%clk 0:00:31]} 39. Rd5+ {[%clk 0:00:07]}  Ke6 {[%clk 0:00:30]} 40. Bb2 {[%clk 0:00:08]}  Nd6 {[%clk 0:00:18]} 41. Rxg5 {[%clk 0:00:07]}  Rxg5+ {[%clk 0:00:11]} 42. Kxg5 {[%clk 0:00:08]}  Ne4+ {[%clk 0:00:11]} 43. Kxf4 {[%clk 0:00:07]}  Nd2 {[%clk 0:00:11]} 44. Bc3 {[%clk 0:00:05]}  Nxb3 {[%clk 0:00:11]} 45. g4 {[%clk 0:00:06]}  Na5 {[%clk 0:00:10]} 46. Bxa5 {[%clk 0:00:02]}  bxa5 {[%clk 0:00:10]} 47. Ke4 {[%clk 0:00:03]}  Kf6 {[%clk 0:00:09]} 48. Kd3 {[%clk 0:00:04]}  Kg5 {[%clk 0:00:09]} 49. Kc3 {[%clk 0:00:05]}  Kxg4 {[%clk 0:00:09]} 50. Kb3 {[%clk 0:00:06]}  Kf4 {[%clk 0:00:10]} 51. Ka4 {[%clk 0:00:06]}  Ke4 {[%clk 0:00:10]} 52. Kxa5 {[%clk 0:00:06]}  Kd3 {[%clk 0:00:09]} 53. Ka4 {[%clk 0:00:03]}  Kxc4 {[%clk 0:00:09]} 54. Ka3 {[%clk 0:00:03]}  Kc3 {[%clk 0:00:09]} 55. Ka2 {[%clk 0:00:04]}  Kc2 {[%clk 0:00:10]} 56. Ka1 {[%clk 0:00:04]}  c4 {[%clk 0:00:09]} 57. Ka2 {[%clk 0:00:05]}  c3 {[%clk 0:00:10]} 58. Ka1 {[%clk 0:00:06]}  Kc1 {[%clk 0:00:10]} 59. Ka2 {[%clk 0:00:07]}  c2 {[%clk 0:00:10]} 60. Ka1 {[%clk 0:00:07]}  Kd2 {[%clk 0:00:11]} 61. Ka2 {[%clk 0:00:08]}  c1=Q {[%clk 0:00:11]} 62. Kb3 {[%clk 0:00:07]}  Qc3+ {[%clk 0:00:11]} 0-1

[Event "November 21 Early 2023"]
[Site "https://www.chess.com"]
[Date "2023.11.21"]
[Round "10"]
[White "Kuegel, Tobias"]
[Black "Feliz Dotel, Dewar Bienvenido"]
[Result "1-0"]
[Board "96"]
[TimeControl "180+1"]
[WhiteFideId "4636295"]
[BlackFideId "6402801"]
[WhiteElo "2213"]
[BlackElo "2069"]
[WhiteTeam "GER"]
[BlackTeam "DOM"]
[WhiteClock "0:00:50"]
[BlackClock "0:00:47"]

1. e4 {[%clk 0:03:00]}  e5 {[%clk 0:02:57]} 2. Nf3 {[%clk 0:03:00]}  Nc6 {[%clk 0:02:57]} 3. Bb5 {[%clk 0:03:00]}  Nf6 {[%clk 0:02:57]} 4. O-O {[%clk 0:03:00]}  Nxe4 {[%clk 0:02:56]} 5. d4 {[%clk 0:03:00]}  Nd6 {[%clk 0:02:56]} 6. dxe5 {[%clk 0:03:00]}  Nxb5 {[%clk 0:02:55]} 7. a4 {[%clk 0:03:00]}  Nbd4 {[%clk 0:02:55]} 8. Nxd4 {[%clk 0:03:01]}  Nxd4 {[%clk 0:02:56]} 9. Qxd4 {[%clk 0:03:01]}  d5 {[%clk 0:02:56]} 10. exd6 {[%clk 0:03:00]}  Qxd6 {[%clk 0:02:56]} 11. Qe4+ {[%clk 0:03:00]}  Qe6 {[%clk 0:02:56]} 12. Qd4 {[%clk 0:03:00]}  Qd6 {[%clk 0:02:55]} 13. Qe3+ {[%clk 0:03:01]}  Be6 {[%clk 0:02:55]} 14. Nc3 {[%clk 0:02:59]}  Qc5 {[%clk 0:02:54]} 15. Nb5 {[%clk 0:02:36]}  Qxe3 {[%clk 0:02:15]} 16. Bxe3 {[%clk 0:02:37]}  Bd6 {[%clk 0:02:05]} 17. Rfd1 {[%clk 0:02:30]}  a6 {[%clk 0:01:48]} 18. Nxd6+ {[%clk 0:02:18]}  cxd6 {[%clk 0:01:48]} 19. Rxd6 {[%clk 0:02:17]}  Rd8 {[%clk 0:01:47]} 20. Rad1 {[%clk 0:01:59]}  Rxd6 {[%clk 0:01:46]} 21. Rxd6 {[%clk 0:02:00]}  Ke7 {[%clk 0:01:43]} 22. Rb6 {[%clk 0:01:19]}  Bd5 {[%clk 0:01:42]} 23. Bc5+ {[%clk 0:01:18]}  Kd7 {[%clk 0:01:40]} 24. Rd6+ {[%clk 0:01:17]}  Kc7 {[%clk 0:01:34]} 25. Rxd5 {[%clk 0:01:18]}  Kc6 {[%clk 0:01:32]} 26. c4 {[%clk 0:01:12]}  Re8 {[%clk 0:01:30]} 27. Be3 {[%clk 0:01:09]}  Re4 {[%clk 0:01:28]} 28. Rd4 {[%clk 0:01:07]}  Re5 {[%clk 0:01:26]} 29. Kh1 {[%clk 0:00:57]}  Ra5 {[%clk 0:01:24]} 30. b3 {[%clk 0:00:55]}  b5 {[%clk 0:01:24]} 31. Bd2 {[%clk 0:00:53]}  b4 {[%clk 0:01:02]} 32. Rd5 {[%clk 0:00:53]}  Rxd5 {[%clk 0:00:57]} 33. cxd5+ {[%clk 0:00:54]}  Kc5 {[%clk 0:00:57]} 34. Bxb4+ {[%clk 0:00:51]}  Kxd5 {[%clk 0:00:55]} 35. Bf8 {[%clk 0:00:51]}  g6 {[%clk 0:00:54]} 36. b4 {[%clk 0:00:51]}  Kc4 {[%clk 0:00:54]} 37. a5 {[%clk 0:00:51]}  Kb5 {[%clk 0:00:47]} 38. g4 {[%clk 0:00:50]} 1-0